Cogmind - Beta 15 @@@ ROGUE MODE // 2025.09.24 @ 20:56:32 Player: The Sun Result: Destroyed by D-53 Grenadier with Mini Grenade Launcher Performance ------------- Evolutions (0) 0 Regions Visited (4) 800 Robots Destroyed (12) 60 Value Destroyed (223) 223 Prototype IDs (0) 0 Alien Tech Used (0) 0 Bonus (0) 0 TOTAL SCORE: 1083 Bonus ------- None Cogmind --------- Core Integrity 0/250 Matter 295/300 Energy 99/100 System Corruption 0% Temperature Cool (0) Movement Rolling (95) Ox1 Location -9/Mines Parts ------- > --- POWER (1) -------- (None) > --- PROPULSION (2) --- Wheel > --- UTILITY (2) ------ Medium Storage Unit Structural Scanner > --- WEAPON (2) ------- Makeshift Sword > --- INVENTORY (10) --- Improved Heat Sink Compact Matter Pod (150) Seismic Detector Sensor Drone Bay EMP Trap EMP Trap Peak State ------------ > --- POWER ------------ Light Ion Engine > --- PROPULSION ------- Wheel Compact Wheel > --- UTILITY ---------- Improved Heat Sink Medium Storage Unit > --- WEAPON ----------- Medium Laser Makeshift Sword > --- INVENTORY -------- Aluminum Leg Compact Matter Pod Structural Scanner Seismic Detector Sensor Drone Bay EM Pulse Gun Particle Gun Grenade Launcher EMP Trap EMP Trap [Rating: 14] Favorites ----------- Power Light Ion Engine Engine Light Ion Engine Propulsion Wheel Leg Aluminum Leg Wheel Wheel Utility Medium Storage Unit Device Improved Heat Sink Storage Medium Storage Unit Weapon Medium Laser Energy Gun Medium Laser Ballistic Gun Light Assault Rifle Launcher Grenade Launcher Slashing Weapon Makeshift Sword Build | -11 -10 -10 -10 -9 ------- Run | Yrd Mat Min Exi Min Slots Evolved . | . . . . . Power . | . . . . . Propulsion . | . . . . . Utility . | . . . . . Weapon . | . . . . . Parts Attached 19 | 5 3 9 . 2 Power 3 | 1 . 2 . . Engine 3 | 1 . 2 . . Core . | . . . . . Reactor . | . . . . . Propulsion 5 | 2 . 3 . . Treads . | . . . . . Leg 1 | . . 1 . . Wheel 4 | 2 . 2 . . Hover . | . . . . . Flight . | . . . . . Utility 5 | . 3 2 . . Device 3 | . 2 1 . . Storage 2 | . 1 1 . . Processor . | . . . . . Hackware . | . . . . . Protection . | . . . . . Artifact . | . . . . . Weapon 6 | 2 . 2 . 2 Energy Gun 3 | 2 . . . 1 Energy Cannon . | . . . . . Ballistic Gun 1 | . . 1 . . Ballistic Cannon . | . . . . . Launcher 1 | . . . . 1 Special Weapon . | . . . . . Impact Weapon . | . . . . . Slashing Weapon 1 | . . 1 . . Piercing Weapon . | . . . . . Special Melee Weapon . | . . . . . Unidentified Prototypes . | . . . . . Parts Lost 4 | . . 1 . 3 Power 2 | . . 1 . 1 Propulsion 1 | . . . . 1 Utility . | . . . . . Weapon 1 | . . . . 1 Highest Loss Streak 3 | . . 1 . 3 To Critical Strikes . | . . . . . Average Backups 5 | 2 2 7 7 5 Power . | . . . . . Propulsion . | 1 . 1 . . Utility 3 | . . 3 4 4 Weapon 2 | . 1 2 3 1 Tool/Special . | . . . . . Unused Backups 2 | . . . . 2 Power . | . . . . . Propulsion . | . . . . . Utility 2 | . . . . 2 Weapon . | . . . . . Tool/Special . | . . . . . Average Slot Usage (%) 96 | . 78 97 100 99 Engine 12 | . 14 11 14 13 Wheel 28 | . 28 28 28 28 Device 13 | . 7 14 14 14 Storage 12 | . . 13 14 14 Energy Gun 14 | . 28 14 14 11 Ballistic Gun 3 | . . 8 . . Slashing Weapon 8 | . . 5 14 14 Peak Build Rating 14 | 5 7 14 13 14 Average Rating 10 | 2 5 10 13 13 On Entrance 7 | . 5 7 13 13 Naked Turns . | . . . . . Heaviest Build 19 | 7 10 18 18 19 Greatest Support 26 | 20 20 26 26 26 Greatest Overweight (x) 2 | 2 . . . 1 Average Overweight (x) . | . . . . . Largest Inventory Capacity 10 | 5 5 10 10 10 Average Capacity 9 | 5 5 9 10 10 Most Carried 10 | 5 4 10 9 9 Average Carried 6 | 2 2 7 9 7 Final Capacity 10 | 5 5 10 10 10 Final Carried 9 | 1 3 9 9 6 Class Distribution -------------------- 78% | Mutant 21% | Scavenger-Mutant Dominant Class ---------------- Mutant | -10/Materials Mutant | -10/Mines Mutant | -10/Exiles Scavenger-Mutant | -9/Mines Resources | -11 -10 -10 -10 -9 ----------- Run | Yrd Mat Min Exi Min Matter Collected 519 | 250 . 249 . 20 Remotely . | . . . . . Salvage Created 454 | 46 . 302 . 106 Parts 30 | 2 . 18 . 10 Haulers Intercepted . | . . . . . Recyclers Shooed 2 | . . 2 . . Parts Field Recycled . | . . . . . Retrieved Matter . | . . . . . Parts Self-Destructed . | . . . . . Prevented . | . . . . . Kills | -11 -10 -10 -10 -9 ------- Run | Yrd Mat Min Exi Min Combat Hostiles Destroyed 5 | 1 . 2 . 2 Melee 2 | . . . . 2 Guns 3 | 1 . 2 . . Classes Destroyed 5 | 1 . 3 . 1 Worker 3 | . . 3 . . Builder 1 | . . 1 . . Tunneler 1 | . . . . 1 Recycler 2 | . . 2 . . Grunt 5 | 1 . 2 . 2 Best Kill Streak 3 | 1 . 3 . 1 Combat Bots Only 2 | 1 . 2 . 1 Max Kills in Single Turn 1 | 1 . 1 . 1 Gunslinging . | . . . . . Exploded . | . . . . . Melee 1 | . . . . 1 Uniques/NPCs Destroyed . | . . . . . Combat | -11 -10 -10 -10 -9 -------- Run | Yrd Mat Min Exi Min Hostile Shots Fired 52 | 3 8 18 . 23 Missed 10 | 1 2 2 . 5 Hits 42 | 2 6 16 . 18 Projectile 42 | 2 6 16 . 18 AOE 6 | . . . . 6 Damage Taken 674 | 21 52 207 . 394 Core 258 | 11 8 58 . 181 Absorbed by Shields . | . . . . . Core Remaining (%) 95 | 95 . . . . Volleys Fired 45 | 3 . 32 . 10 Largest 2 | 1 . 2 . 1 Hottest 70 | 40 . 70 . 65 Shots Fired 77 | 3 . 64 . 10 Gun 76 | 3 . 64 . 9 Cannon . | . . . . . Launcher 1 | . . . . 1 Special . | . . . . . Kinetic 32 | . . 32 . . Thermal 41 | . . 32 . 9 Explosive 1 | . . . . 1 Electromagnetic 3 | 3 . . . . Robot Hit Streak 7 | 2 . 7 . 2 Robot Miss Streak 4 | 1 . 2 . 4 Penetration Max . | . . . . . Secondary Targets . | . . . . . Shots Hit Robots 59 | 2 . 46 . 11 Core Hits 23 | 1 . 18 . 4 Critical Kills . | . . . . . Critical Parts Destroyed . | . . . . . Critical Strikes 2 | . . 2 . . Burn 2 | . . 2 . . Melee Attacks 16 | . . 3 . 13 Impact . | . . . . . Slashing 16 | . . 3 . 13 Piercing . | . . . . . Sneak Attacks 4 | . . 3 . 1 Combat Hostiles . | . . . . . Follow-up Attacks . | . . . . . Damage Inflicted 1085 | 30 . 676 . 379 Guns 537 | 30 . 459 . 48 Cannons . | . . . . . Explosions . | . . . . . Melee 548 | . . 217 . 331 Ramming . | . . . . . Kinetic 183 | . . 183 . . Thermal 324 | . . 276 . 48 Explosive . | . . . . . Electromagnetic 30 | 30 . . . . Impact . | . . . . . Slashing 548 | . . 217 . 331 Piercing . | . . . . . Highest Corruption . | . . . . . Average Corruption . | . . . . . Corruption Purged . | . . . . . Corruption Blocked . | . . . . . Overload Shots . | . . . . . Overflow Damage 94 | . . 86 . 8 Projectiles . | . . . . . Explosions . | . . . . . Melee 94 | . . 86 . 8 Knockbacks . | . . . . . Impact . | . . . . . Kinetic . | . . . . . Secondary . | . . . . . Self-Inflicted Damage . | . . . . . Shots . | . . . . . Rammed . | . . . . . Targets Rammed . | . . . . . Kicked . | . . . . . Crushed . | . . . . . Highest Temperature 121 | 12 . 121 . 30 Average Temperature 40 | 9 . 42 . 22 Received Heat Transfer 207 | 12 . 117 . 78 Siege Activations . | . . . . . Martial Activations . | . . . . . Shielding Activations . | . . . . . Robots Disrupted . | . . . . . Combat Hostiles . | . . . . . Robots Corrupted . | . . . . . Combat Hostiles . | . . . . . Parts Fried . | . . . . . Impact Corruptions . | . . . . . Robots Melted . | . . . . . Combat Hostiles . | . . . . . Parts Melted 1 | . . 1 . . Heat Transferred 1073 | . . 962 . 111 Parts Sabotaged . | . . . . . Parts Stolen . | . . . . . Parts Stripped . | . . . . . Power Chain Reactions . | . . . . . Alert | -11 -10 -10 -10 -9 ------- Run | Yrd Mat Min Exi Min Maximum Alert Level . | . . . . . Low Security (%) 100 | 100 100 100 . 100 Level 1 . | . . . . . Level 2 . | . . . . . Level 3 . | . . . . . Level 4 . | . . . . . Level 5 . | . . . . . High Security . | . . . . . Max Security . | . . . . . Peak Influence 45 | 20 6 45 . 30 Initial 6 | . 6 . . . Average 5 | 4 1 6 . 4 Influence Increases 175 | 20 . 80 . 75 Destroy 0b10 Robot/C 100 | 20 . 40 . 40 Destroy 0b10 Robot/NC 35 | . . 30 . 5 Destroy Leader 20 | . . 10 . 10 Destroy Structure 5 | . . . . 5 Lose Combat Pursuer 15 | . . . . 15 Influence Decreases 175 | 10 10 80 . 75 Entered New Map 4 | . 4 . . . Time Decay 166 | 10 6 80 . 70 Lost Part 5 | . . . . 5 Squads Dispatched . | . . . . . Investigation . | . . . . . Extermination . | . . . . . Reinforcement . | . . . . . Assault . | . . . . . Garrison . | . . . . . Intercept . | . . . . . Searches Triggered . | . . . . . Construction Impeded . | . . . . . Haulers Reinforced . | . . . . . Active Scanning Responses . | . . . . . Cargo Convoy Interrupts . | . . . . . Stealth | -11 -10 -10 -10 -9 --------- Run | Yrd Mat Min Exi Min Distress Signals . | . . . . . Communications Jammed . | . . . . . Distress Signals . | . . . . . Times Spotted 10 | 1 3 2 . 4 Peak Tracking Total 3 | 1 3 2 . 2 Tactical Retreats 1 | . . . . 1 Traps | -11 -10 -10 -10 -9 ------- Run | Yrd Mat Min Exi Min Traps Triggered . | . . . . . Indirectly . | . . . . . Trap Hack Attempts . | . . . . . Triggered . | . . . . . Disarmed . | . . . . . Reprogrammed . | . . . . . Reused . | . . . . . Traps Extracted . | . . . . . Installed . | . . . . . Triggered . | . . . . . Most Traps Carried 2 | . . 2 2 2 Machines | -11 -10 -10 -10 -9 ---------- Run | Yrd Mat Min Exi Min Machines Disabled . | . . . . . Max in Single Turn . | . . . . . Machines Repaired . | . . . . . Machines Dismantled . | . . . . . Machines Sabotaged . | . . . . . Overloaded Fab Kills . | . . . . . Hacking | -11 -10 -10 -10 -9 --------- Run | Yrd Mat Min Exi Min Machines Accessed 2 | . . 1 1 . Terminals . | . . . . . Fabricators . | . . . . . Repair Stations . | . . . . . Recycling Units . | . . . . . Scanalyzers . | . . . . . Garrison Access . | . . . . . Total Hacks 24 | . . 1 23 . Successful 24 | . . 1 23 . Failed . | . . . . . Catastrophic . | . . . . . Database Lockouts . | . . . . . Manual 12 | . . 8 4 . Terminals . | . . . . . Fabricators . | . . . . . Repair Stations . | . . . . . Recycling Units . | . . . . . Scanalyzers . | . . . . . Garrison Access . | . . . . . Terminal Hacks 24 | . . 1 23 . Record 23 | . . . 23 . Open Door 1 | . . 1 . . Fabricator Hacks . | . . . . . Repair Station Hacks . | . . . . . Recycling Unit Hacks . | . . . . . Scanalyzer . | . . . . . Garrison Access Hacks . | . . . . . Unauthorized Hacks . | . . . . . Terminals . | . . . . . Fabricators . | . . . . . Repair Stations . | . . . . . Recycling Units . | . . . . . Scanalyzers . | . . . . . Garrison Access . | . . . . . Data Cores Recovered . | . . . . . Used . | . . . . . Hacking Detections . | . . . . . Full Trace Events . | . . . . . Feedback Events . | . . . . . Feedback Blocked . | . . . . . Robot Schematics Acquired . | . . . . . Robots Built . | . . . . . Authchips . | . . . . . Time . | . . . . . Total Robot Build Rating . | . . . . . Part Schematics Acquired . | . . . . . Parts Built . | . . . . . Authchips . | . . . . . Time . | . . . . . Total Part Build Rating . | . . . . . Parts Repaired . | . . . . . Time . | . . . . . Parts Recycled . | . . . . . Recycled Matter . | . . . . . Retrieved Matter . | . . . . . Retrieved Components . | . . . . . Parts Scanalyzed . | . . . . . Part Schematics Acquired . | . . . . . Parts Damaged . | . . . . . Bothacking | -11 -10 -10 -10 -9 ------------ Run | Yrd Mat Min Exi Min Used RIF Installer . | . . . . . Robots Hacked . | . . . . . Non-combat . | . . . . . Combat . | . . . . . Robot Hacks Applied . | . . . . . Relay Couplers Released . | . . . . . Fabnet Peak Effective % . | . . . . . Robots Rewired . | . . . . . Allies Hacked . | . . . . . Hacks Repelled . | . . . . . Allies | -11 -10 -10 -10 -9 -------- Run | Yrd Mat Min Exi Min Total Allies . | . . . . . Largest Group . | . . . . . Highest-Rated Group . | . . . . . Highest-Rated Ally . | . . . . . Total Orders . | . . . . . Ally Attacks . | . . . . . Total Damage . | . . . . . Kills . | . . . . . Allies Corrupted . | . . . . . Allies Melted . | . . . . . Intel | -11 -10 -10 -10 -9 ------- Run | Yrd Mat Min Exi Min Active Infowar (turns) 274 | . 22 204 . 48 Structural 273 | . 22 203 . 48 Seismic 19 | . 18 1 . . Robot Analysis Total . | . . . . . Derelict Logs Recovered 3 | . . 1 . 2 Drone Launches . | . . . . . Drone Recoveries . | . . . . . Exploration | -11 -10 -10 -10 -9 ------------- Run | Yrd Mat Min Exi Min Turns Passed 1273 | 89 74 560 141 409 Spaces Moved 1227 | 81 83 519 157 387 Core 79 | 79 . . . . Treads . | . . . . . Legs . | . . . . . Wheels 1148 | 2 83 519 157 387 Hover . | . . . . . Flight . | . . . . . Fastest Speed 50 | 50 80 80 90 90 Average Speed 86 | 89 80 83 90 90 Slowest Speed 150 | 150 80 90 90 95 Overloaded Moves . | . . . . . Propulsion Burnouts . | . . . . . Robots Hopped . | . . . . . Potential Cave-ins . | . . . . . Cave-ins Triggered . | . . . . . Exploration Rate (%) 42 | 6 24 75 52 54 Regions Visited 4 Branch Regions 3 Pre-discovered Areas 1 | . . . 1 . Known Exits Taken . | . . . . . Unknown Exits Taken 4 | 1 1 1 1 . Scrap Searched 3 | . . 1 . 2 Spaces Dug . | . . . . . Terrain Destroyed 5 | . . . . 5 Melee . | . . . . . Projectile . | . . . . . AOE 5 | . . . . 5 Terrain Rammed . | . . . . . Walls Destroyed . | . . . . . Machines Disabled . | . . . . . Actions | -11 -10 -10 -10 -9 --------- Run | Yrd Mat Min Exi Min Total 1362 | 94 90 594 156 428 Wait 9 | . . . . 9 Move 1223 | 80 82 518 156 387 Hop . | . . . . . Pick Up 23 | 6 4 13 . . Fast Attach . | . . . . . Attach 23 | 5 3 12 . 3 Detach 14 | . 1 10 . 3 Swap . | . . . . . Drop 9 | . . 6 . 3 Fire 45 | 3 . 32 . 10 Melee 16 | . . 3 . 13 Ram . | . . . . . Kick . | . . . . . Crush . | . . . . . Escape Stasis . | . . . . . Rewire . | . . . . . Trap . | . . . . . Miscellaneous . | . . . . . Route ------- -11/Scrapyard -10/Materials -10/Mines (discovered 3 exits: [*Mat x2] / *Exi) -10/Exiles (discovered 2 exits: [*Min x2]) -9/Mines (discovered 2 exits: *Mat x2) History --------- Turn | Location | Event 2 | -11/Scrapyard | Met Revision 17 50 | -11/Scrapyard | Discovered new exit (range 8) 90 | -11/Scrapyard | Entered Materials 156 | -10/Materials | Discovered new exit (range 5) 164 | -10/Materials | Entered Mines 166 | -10/Mines | Found the Drone Emporium 172 | -10/Mines | Found Prototype Device 223 | -10/Mines | Learned location of 1 exit from Materials 227 | -10/Mines | Discovered new exit (range 9) 317 | -10/Mines | Build established: Mutant 512 | -10/Mines | A weapon hastily lodged in a ceiling crevice suddenly fell to the ground 527 | -10/Mines | Discovered new exit (range 3) 699 | -10/Mines | Found a hidden stash of uninstalled traps 721 | -10/Mines | Deemed a non-threat by the Exiles lab entrance 721 | -10/Mines | Discovered new exit (range 5) 724 | -10/Mines | Entered Exiles 724 | -10/Exiles | Found Exiles lab destroyed 742 | -10/Exiles | Discovered new exit (range 15) 813 | -10/Exiles | Learned location of Zion (-7) 854 | -10/Exiles | Discovered new exit (range 14) 865 | -10/Exiles | Entered Mines 895 | -9/Mines | Met a Derelict bent on vengeance 1000 | -9/Mines | Discovered new exit (range 5) 1059 | -9/Mines | Learned Materials terminal intel 1162 | -9/Mines | Identified exit to Materials 1251 | -9/Mines | Assembled infested the area 1270 | -9/Mines | Core integrity fell below 50% 1272 | -9/Mines | Core integrity fell below 20% 1274 | -9/Mines | Destroyed by D-53 Grenadier with Mini Grenade Launcher Last Messages --------------- Destroyed Sml. Laser. Acquired derelict log, extracted data. Data stored: Materials terminal intel. G-34 Mercenary destroyed. K-01 Serf collects debris. Acquired derelict log, extracted data. Loading 1 Mines exit... Dropped Particle Gun. Acquired 10 matter. K-01 Serf collects debris. ALERT: Infestation in the mines, dispatching Demolisher response squad. K-01 Serf collects debris. C-30 ARC bursts open, deploying its payload. D-53 Grenadier unfolds itself. Lgt. Ion Engine destroyed. T-07 Excavator destroyed. Grenade Launcher destroyed. K-01 Serf collects debris. Com. Wheel destroyed. Map ----- +----------------------------------------------------+ | ?????????????????### < ###??##### ##### | | ?????????????????#### ######### ##???## | | ??????????????????### ######## #?????# | | ???????????????????## ####### ## #?????## | | ???????????? ??????## ###### #### ##??????# | | ????????????? ?????## =% ###?####???????# | | ????????????? ?????## = #######?????????# | | ????????????? ?????######### #######?????????## | | ????????????# ???? ######## ##??????????? | | ????????????## ????????#### ### ####????????? | | ????????????## ????????### ### #????????? | | ????????????## ???????## ##### #????????? | | ????????????## ???????## ##??# #????????? | | ????????????## ??????## ###??# #????????? | | ????????????## ??????## ###??# #????????? | | ????????????## ###???## ###???# #????????? | | ????????????## ######## #####?### ###??????? | | ????????????## ######## ######?## ##?????? | | ????????????## #### #dd ####??# #?????? | | ????????????### ## ###??# #?????? | | ????????????### ## ## ##??## ##?????? | | ?????????????## ### # ##???## ##??????? | | ?????????????## #### ###????# ##???????# | | ?????????????## ?#### ##????# #????????# | | ????????????? ??#### ##????# #????????# | | ?????????????? ???### @ ##????# #????????# | | ????????????## ?????## ##????# ##???????# | | ????????????## ?????## ###????## ####?#### | | ???????????? ?????#### ####?????## ### # | | ????????????## ????? ####???????# | | ????????????## ???????? ###????????## | | ????????????###??????? #??????????## | | ????????????###?????## ???????????### | | ????????????????????### ????????????## | | ????????????????????#### ##???????????# # | | ????????????????????? k k ###???????????# # | | ?????????????????????? ####???????????# # | | ??????????????????????### ####????????????# ## | | ??????????????????????########?????####????# #? | | ????????????????????????#####?????## ##???# #? | | ??????????????????????????????????# ##### #? | | ?????????????????????????????###### ## #? | | ?????????????????????????????# ##? | | ?????????????????????????????# ## ##?? | | ?????????????????????????????# ## ## #??? | | ?????????????? ####### ### #### #??? | | ?????????????? #?####??## #??? | | ?????????????? ####### ##???????## #??? | | ???????????????????????????## !##???????## #??? | | ???????????????????????????# [%#############??? | +----------------------------------------------------+ Best States ------------- Heat Dissipation 39 Energy Generation 10 Energy Capacity 125 Matter Stores 300 Matter Capacity 400 Sight Range 16 Terrain Scan Density 10 Evasion (%) 50 Item Schematics ----------------- None Robot Schematics ------------------ None Fabricated ------------ Nothing Repaired ---------- Nothing Alien Tech Used ----------------- None Achievements -------------- Librarian Tourist Challenges ------------ None Game ------ Seed DispersalSlugAutohacker Manual? 0 Play Time 00:21:40 Cumulative 0.8 hours Start 2025.09.24 @ 20:21:04 End 2025.09.24 @ 20:56:32 Sessions 1 Manual Loads 0 Difficulty Rogue Special Mode None Game No. 3 Rogue 3 Adventurer 0 Explorer 0 Win Type - Total 0 Types 0/0/0/0/0/0/0/0/0/0 Lore% 2 Gallery% 2 Achievement% 2 Wizard Run 0 Options --------- Layout 1 ASCII 0 Keyboard 0 Movement Mouse Keybinds 0 Fullscreen 1 Font 32/SmallcapsGlow Map View 50x35 Zoom Use 0% Tactical HUD 0 Map Filters NONE Filters NONE Steam 1 RUN: 0adf466e-5a5e-484a-8525-ba0aa17b497d